fUSD/lending_fUSD_20250223
["ID","MTS","AMOUNT","RATE_DAILY","PERIOD"]
[354181259,1740331868442,-500.0,0.00017699,2]
[354181260,1740331868452,-500.0,0.00017699,2]
[354181261,1740331868461,-500.0,0.00017699,2]
[354181262,1740331868470,-536.96684688,0.00017699,2]
[354181263,1740331868480,-2597.98,0.00017699,2]
[354181264,1740331868490,-2597.98,0.00017699,2]
[354181265,1740331868499,-2597.98,0.00017699,2]
[354181266,1740331868508,-2597.98,0.00017699,2]
[354181267,1740331868517,-2597.98,0.00017699,2]
[354181268,1740331868527,-2597.98,0.00017699,2]
[354181269,1740331868536,-2597.98,0.00017699,2]
[354181270,1740331868545,-2597.98,0.00017699,2]
[354181271,1740331868554,-2597.98,0.00017699,2]
[354181272,1740331868563,-2597.98,0.00017699,2]
[354181273,1740331868572,-2597.98,0.00017699,2]
[354181274,1740331868581,-2597.98,0.00017699,2]
[354181275,1740331868591,-2597.98,0.00017699,2]
[354181276,1740331868600,-2597.98,0.00017699,2]
[354181277,1740331868609,-2597.98,0.00017699,2]
[354181278,1740331868618,-2597.98,0.00017699,2]
[354181279,1740331868627,-2597.98,0.00017699,2]
[354181280,1740331868637,-2597.98,0.00017699,2]
[354181281,1740331868646,-2597.98,0.00017699,2]
[354181282,1740331868656,-2597.98,0.00017699,2]
[354181283,1740331868665,-2597.98,0.00017699,2]
[354181284,1740331868674,-2598.08342562,0.00017699,2]
[354181285,1740331868688,-500.0,0.00017699,2]
[354181286,1740331868705,-500.0,0.00017699,2]
[354181287,1740331868721,-500.0,0.00017699,2]
[354181288,1740331868744,-500.0,0.00017699,2]
[354181289,1740331868759,-500.0,0.00017699,2]
[354181290,1740331868774,-500.0,0.00017699,2]
[354181291,1740331868792,-500.0,0.00017699,2]
[354181292,1740331868811,-500.0,0.00017699,2]
[354181293,1740331868829,-500.0,0.00017699,2]
[354181294,1740331868846,-500.0,0.00017699,2]
[354181295,1740331868863,-500.0,0.00017699,2]
[354181296,1740331868878,-500.0,0.00017699,2]
[354181297,1740331868896,-500.0,0.00017699,2]
[354181298,1740331868908,-500.0,0.00017699,2]
[354181299,1740331868924,-515.86937663,0.00017699,2]
[354181300,1740331868937,-500.0,0.00017699,2]
[354181301,1740331868951,-500.0,0.00017699,2]
[354181302,1740331868965,-500.0,0.00017699,2]
[354181303,1740331868981,-500.0,0.00017699,2]
[354181304,1740331868995,-389.97876277,0.00017699,2]
[354181305,1740331869010,-500.0,0.00017699,2]
[354181306,1740331869024,-500.0,0.00017699,2]
[354181307,1740331869038,-500.0,0.00017699,2]
[354181308,1740331869053,-500.0,0.00017699,2]
[354181309,1740331869068,-500.0,0.00017699,2]
[354181310,1740331869082,-500.0,0.00017699,2]
[354181311,1740331869095,-500.0,0.00017699,2]
[354181312,1740331869110,-500.0,0.00017699,2]
[354181313,1740331869125,-500.0,0.00017699,2]
[354181314,1740331869139,-500.0,0.00017699,2]
[354181315,1740331869154,-500.0,0.00017699,2]
[354181316,1740331869169,-500.0,0.00017699,2]
[354181317,1740331869184,-500.0,0.00017699,2]
[354181318,1740331869198,-374.6216062,0.00017699,2]
[354181319,1740331869214,-7229.17,0.00017699,2]
[354181320,1740331869228,-7229.17,0.00017699,2]
[354181321,1740331869242,-7229.17,0.00017699,2]
[354181322,1740331869257,-7229.17,0.00017699,2]
[354181323,1740331869271,-7229.17,0.00017699,2]
[354181324,1740331869288,-7229.17,0.00017699,2]
[354181325,1740331869303,-7229.17,0.00017699,2]
[354181326,1740331869317,-7229.17,0.00017699,2]
[354181327,1740331869332,-7229.17,0.00017699,2]
[354181328,1740331869347,-7229.17,0.00017699,2]
[354181329,1740331869365,-7229.17,0.00017699,2]
[354181330,1740331869380,-7229.17,0.00017699,2]
[354181331,1740331869397,-7229.17,0.00017699,2]
[354181332,1740331869413,-5617.00668658,0.00017699,2]
[354181333,1740331870190,-500.0,0.0001758,2]
[354181334,1740331870202,-1612.16331342,0.00017699,2]
[354181335,1740331870211,-747.90907354,0.00017699,2]
[354181336,1740331870222,-739.75487674,0.00017699,2]
[354181337,1740331870235,-5741.50604972,0.00017699,2]
[354181338,1740331870244,-7229.17,0.00017699,2]
[354181339,1740331870253,-7229.33432212,0.00017699,2]
[354181340,1740331870263,-2160.96,0.00017699,2]
[354181341,1740331870272,-2160.96,0.00017699,2]
[354181342,1740331870283,-2160.96,0.00017699,2]
[354181343,1740331870293,-2160.96,0.00017699,2]
[354181344,1740331870302,-2160.96,0.00017699,2]
[354181345,1740331870311,-2160.96,0.00017699,2]
[354181346,1740331870321,-2160.96,0.00017699,2]
[354181347,1740331870331,-2160.96,0.00017699,2]
[354181348,1740331870340,-2160.96,0.00017699,2]
[354181349,1740331870348,-2160.96,0.00017699,2]
[354181350,1740331870360,-2160.96,0.00017699,2]
[354181351,1740331870370,-2160.96,0.00017699,2]
[354181352,1740331870379,-2160.96,0.00017699,2]
[354181353,1740331870390,-2160.96,0.00017699,2]
[354181354,1740331870399,-2160.96,0.00017699,2]
[354181355,1740331870409,-2160.96,0.00017699,2]
[354181356,1740331870418,-2160.96,0.00017699,2]
[354181357,1740331870427,-2160.96,0.00017699,2]
[354181358,1740331870436,-2160.96,0.00017699,2]
[354181359,1740331870446,-203.34505927,0.000177,5]
[354181360,1740331870455,-56397.53119221,0.000177,5]
[354181361,1740331870502,-2025.44595638,0.000177,5]
[354181362,1740331870513,-4509.71223315,0.000177,5]
[354181363,1740331870565,-500.0,0.00017662,2]
[354181364,1740331870574,-151.249959,0.000177,5]
[354181365,1740331870585,-4782.42765,0.000177,5]
[354181366,1740331870596,-9061.49703077,0.000177,5]
[354181367,1740331870607,-9100.54196076,0.000177,5]
[354181368,1740331870933,-311.74545988,0.0001,2]
[354181369,1740331870943,-500.0,0.00016438,2]
[354181370,1740331870952,-500.0,0.0001652,2]
[354181371,1740331870962,-241.51498843,0.0001676,2]
[354181372,1740331870972,-215.99013346,0.00017289,2]
[354181373,1740331870981,-94947.23899874,0.000177,5]
[354181374,1740331870993,-91587.54498656,0.000177,5]
[354181375,1740331871130,-443.99756316,0.000177,5]
[354181376,1740331871141,-319.83586182,0.000177,5]
[354181377,1740331871153,-963.19752,0.000177,5]
[354181378,1740331871164,-1011.06427204,0.000177,5]
[354181379,1740331871175,-4757.70887035,0.000177,5]
[354181380,1740331871767,-500.0,0.00016438,2]
[354181381,1740331871776,-500.0,0.00016438,2]
[354181382,1740331871786,-184.2,0.0001652,2]
[354181383,1740331871797,-315.8,0.0001652,2]
[354181384,1740331871806,-500.0,0.0001652,2]
[354181385,1740331871815,-139.9548,0.0001758,2]
[354181386,1740331871826,-360.0452,0.0001758,2]
[354181387,1740331871835,-87390.44772626,0.000177,5]
[354181388,1740331872245,-311.74545985,0.00011825,2]
[354181389,1740331872254,-500.0,0.00016438,2]
[354181390,1740331872263,-500.0,0.0001652,2]
[354181391,1740331872272,-500.0,0.00016602,2]
[354181392,1740331872285,-241.51498843,0.000176,2]
[354181393,1740331872294,-316.03210172,0.000177,5]
[354181394,1740331872305,-2391.3329682,0.000177,5]
[354181395,1740331872406,-384.45992401,0.000177,5]
[354181396,1740332188215,-152.693175,0.00010958,2]
[354181397,1740332188238,-164.185753,0.00010958,2]
[354181398,1740332188259,-151.833865,0.00010958,2]
[354181399,1740332188281,-152.693175,0.00011123,2]
[354181400,1740332188304,-151.833865,0.00011123,2]
[354181401,1740332188325,-152.693175,0.00011205,2]
[354181402,1740332188347,-151.833865,0.00011205,2]
[354181403,1740332188368,-152.693175,0.00011369,2]
[354181404,1740332188389,-151.833865,0.00011369,2]
[354181405,1740332188412,-150.0,0.00014713,2]
[354181406,1740332188433,-150.0,0.00015125,2]
[354181407,1740332188455,-502.85,0.00015578,2]
[354181408,1740332188477,-1000.0,0.00015936,2]
[354181409,1740332188499,-490.75,0.0001598,2]
[354181410,1740332188518,-150.0,0.0001603,2]
[354181411,1740332188538,-156.84866734,0.0001642,2]
[354181412,1740332188558,-311.74545985,0.0001642,2]
[354181413,1740332188578,-200.0,0.00016428,2]
[354181414,1740332188598,-500.0,0.00016438,2]
[354181415,1740332188619,-500.0,0.00016438,2]
[354181416,1740332188638,-500.0,0.00016438,2]
[354181417,1740332188657,-500.0,0.00016438,2]
[354181418,1740332188684,-500.0,0.00016438,2]
[354181419,1740332188704,-500.0,0.00016438,2]
[354181420,1740332188724,-500.0,0.00016438,2]
[354181421,1740332188744,-504.09814448,0.00016438,2]
[354181422,1740332188764,-500.0,0.00016438,2]
[354181423,1740332188784,-500.0,0.00016438,2]
[354181424,1740332188804,-500.0,0.00016438,2]
[354181425,1740332188825,-1.41381533,0.00016438,2]
[354181433,1740332789996,-151.833865,0.00010958,2]
[354181434,1740332790018,-152.693175,0.00010958,2]
[354181435,1740332790038,-150.0,0.00011082,2]
[354181436,1740332790059,-151.833865,0.00011205,2]
[354181437,1740332790082,-152.693175,0.00011287,2]
[354181438,1740332790103,-150.0,0.00012054,2]
[354181439,1740332790125,-724.15,0.00012987,2]
[354181440,1740332790146,-150.0,0.00013355,2]
[354181441,1740332790169,-150.0,0.00014673,2]
[354181442,1740332790414,-150.0,0.00014877,2]
[354181443,1740332790439,-150.0,0.00015062,2]
[354181444,1740332790460,-300.0,0.00015212,2]
[354181445,1740332790481,-7466.79592,0.00015213,2]
[354181446,1740332790742,-10000.0,0.00015213,2]
[354181447,1740332793299,-2527.68408,0.00015213,2]
[354181448,1740332793320,-724.15,0.00015251,2]
[354181449,1740332793345,-150.0,0.00015339,2]
[354181450,1740332793368,-150.0,0.00015346,2]
[354181451,1740332793391,-150.0,0.00015362,2]
[354181452,1740332793412,-150.0,0.00015362,2]
[354181453,1740332793434,-244.86,0.0001544,2]
[354181454,1740332793459,-150.0,0.00015476,2]
[354181455,1740332793481,-150.0,0.00015614,2]
[354181456,1740332793505,-150.0,0.00015628,2]
[354181457,1740332793528,-150.0,0.00015646,2]
[354181458,1740332793551,-503.81,0.00015668,2]
[354181459,1740332793574,-150.0,0.00015931,2]
[354181460,1740332793600,-150.0,0.00016124,2]
[354181461,1740332793625,-150.0,0.00016148,2]
[354181462,1740332793649,-150.0,0.00016156,2]
[354181463,1740332793674,-150.0,0.00016215,2]
[354181464,1740332793696,-150.0,0.00016215,2]
[354181465,1740332793719,-150.0,0.00016292,2]
[354181466,1740332793743,-150.0,0.00016323,2]
[354181467,1740332793767,-346.71318155,0.00016338,2]
[354181468,1740332793789,-493.65,0.00016338,2]
[354181469,1740332793810,-496.39,0.00016338,2]
[354181470,1740332793832,-503.44,0.00016338,2]
[354181471,1740332793854,-490.59,0.00016338,2]
[354181472,1740332793876,-499.75,0.00016338,2]
[354181473,1740332793897,-768.96273845,0.00016428,2]
[354181474,1740332794207,-857.29,0.00014848,2]
[354181475,1740332794229,-1104.84726155,0.00016428,2]
[354181476,1740332794251,-500.0,0.00016437,2]
[354181477,1740332794272,-154.42324259,0.00016437,2]
[354181478,1740332794294,-500.0,0.00016437,2]
[354181479,1740332794316,-500.0,0.00016437,2]
[354181480,1740332794338,-295.54437913,0.00016437,2]
[354181481,1740332794358,-500.0,0.00016438,2]
[354181482,1740332794379,-500.0,0.00016438,2]
[354181483,1740332794400,-500.0,0.00016438,2]
[354181484,1740332794421,-500.0,0.00016438,2]
[354181485,1740332794443,-500.0,0.00016438,2]
[354181486,1740332794463,-500.0,0.00016438,2]
[354181487,1740332794484,-500.0,0.00016438,2]
[354181488,1740332794506,-500.0,0.00016438,2]
[354181489,1740332794526,-500.0,0.00016438,2]
[354181490,1740332794547,-500.0,0.00016438,2]
[354181491,1740332794567,-500.0,0.00016438,2]
[354181492,1740332794590,-500.0,0.00016438,2]
[354181493,1740332794611,-87.89511673,0.00016438,2]
[354181494,1740332796072,-412.10488327,0.00016438,2]
[354181495,1740332796092,-500.0,0.00016438,2]
[354181496,1740332796113,-500.0,0.00016438,2]
[354181497,1740332796133,-500.0,0.00016438,2]
[354181498,1740332796154,-500.0,0.00016438,2]
[354181499,1740332796176,-500.0,0.00016438,2]
[354181500,1740332796197,-500.0,0.00016438,2]
[354181501,1740332796217,-500.0,0.00016438,2]
[354181502,1740332796239,-500.0,0.00016438,2]
[354181503,1740332796260,-500.0,0.00016438,2]
[354181504,1740332796282,-500.0,0.00016438,2]
[354181505,1740332796303,-500.0,0.00016438,2]
[354181506,1740332796323,-500.0,0.00016438,2]
[354181507,1740332796344,-532.06992123,0.00016438,2]
[354181508,1740332796364,-500.0,0.00016438,2]
[354181509,1740332796385,-500.0,0.00016438,2]
[354181510,1740332796406,-500.0,0.00016438,2]
[354181511,1740332796426,-500.0,0.00016438,2]
[354181512,1740332796447,-1055.8251955,0.00016438,2]
[354181513,1740332812281,500.0,0.00016438,60]
[354181514,1740332818558,-151.833865,0.00010958,2]
[354181515,1740332818579,-311.74545985,0.00016338,2]
[354181516,1740332818604,-464.3648045,0.00016438,2]
[354181517,1740332818624,-1520.19,0.00016438,2]
[354181518,1740332818646,-1520.19,0.00016438,2]
[354181519,1740332818667,-500.0,0.00016438,2]
[354181520,1740332818687,-500.0,0.00016438,2]
[354181521,1740332818706,-500.0,0.00016438,2]
[354181522,1740332818726,-500.0,0.00016438,2]
[354181523,1740332818746,-500.0,0.00016438,2]
[354181524,1740332818767,-420.83342628,0.00016438,2]
[354181525,1740332818788,-500.0,0.00016438,2]
[354181526,1740332818808,-500.0,0.00016438,2]
[354181527,1740332818829,-500.0,0.00016438,2]
[354181528,1740332818849,-500.0,0.00016438,2]
[354181529,1740332818869,-500.0,0.00016438,2]
[354181530,1740332818889,-500.0,0.00016438,2]
[354181531,1740332818908,-110.84244437,0.00016438,2]
[354181532,1740332822893,-300.0,0.00016437,2]
[354181533,1740332822914,-389.15755563,0.00016438,2]
[354181534,1740332822936,-500.0,0.00016438,2]
[354181535,1740332822957,-500.0,0.00016438,2]
[354181536,1740332822979,-500.0,0.00016438,2]
[354181537,1740332823001,-500.0,0.00016438,2]
[354181538,1740332823022,-500.0,0.00016438,2]
[354181539,1740332823048,-500.0,0.00016438,2]
[354181540,1740332823070,-500.0,0.00016438,2]
[354181541,1740332823094,-500.0,0.00016438,2]
[354181542,1740332823116,-500.0,0.00016438,2]
[354181543,1740332823139,-500.0,0.00016438,2]
[354181544,1740332823163,-310.84244437,0.00016438,2]
[354181545,1740332908732,197.65555556,0.0002,120]
[354181560,1740333031942,-300.0,0.00015507,2]
[354181561,1740333031951,-508.37,0.00015507,2]
[354181562,1740333031961,-508.27,0.00015507,2]
[354181563,1740333031971,-174.94827258,0.00015507,2]
[354181564,1740333031983,-320.98172742,0.00015507,2]
[354181565,1740333031992,-490.75,0.00015507,2]
[354181566,1740333032002,-225.20831655,0.00015507,2]
[354181567,1740333032013,-270.19168345,0.00015507,2]
[354181568,1740333032023,-502.63,0.00015508,2]
[354181569,1740333032032,-500.64,0.00015508,2]
[354181570,1740333032042,-509.36,0.00015508,2]
[354181571,1740333032050,-490.52,0.00015508,2]
[354181572,1740333032059,-494.41,0.00015508,2]
[354181573,1740333032068,-506.36,0.00015508,2]
[354181574,1740333032077,-145.37831652,0.00015508,2]
[354181575,1740333032088,-355.77168348,0.00015508,2]
[354181576,1740333032097,-60.51099016,0.00015508,2]
[354181577,1740333032107,-446.81900984,0.00015508,2]
[354181578,1740333032116,-499.24,0.00015508,2]
[354181579,1740333032125,-509.76,0.00015542,2]
[354181580,1740333032134,-151.38,0.00016008,2]
[354181581,1740333032143,-1454.91787162,0.0001632,2]
[354181582,1740333032151,-310.86022394,0.00016338,2]
[354181583,1740333032160,-2649.86337945,0.00016338,2]
[354181584,1740333032169,-311.74545985,0.00016338,2]
[354181585,1740333032178,-1859.18646414,0.000164,3]
[354181586,1740333032216,-4003.9004986,0.000164,3]
[354181587,1740333032266,-782.72458561,0.000164,3]
[354181642,1740333037819,-5871.04845165,0.000164,3]
[354181643,1740333037828,-1405.35,0.00016428,2]
[354181644,1740333037837,-550.0,0.00016437,2]
[354181645,1740333037846,-500.44121385,0.00016438,2]
[354181647,1740333037855,-393.51967789,0.00016438,2]
[354181651,1740333037864,-500.0,0.00016438,2]
[354181653,1740333037873,-500.0,0.00016438,2]
[354181654,1740333037885,-500.0,0.00016438,2]
[354181655,1740333037894,-500.0,0.00016438,2]
[354181656,1740333037904,-500.0,0.00016438,2]
[354181657,1740333037914,-500.0,0.00016438,2]
[354181658,1740333037923,-500.0,0.00016438,2]
[354181659,1740333037934,-500.0,0.00016438,2]
[354181660,1740333037946,-500.0,0.00016438,2]
[354181661,1740333037955,-500.0,0.00016438,2]
[354181662,1740333037964,-500.0,0.00016438,2]
[354181663,1740333037975,-500.0,0.00016438,2]
[354181664,1740333037984,-500.0,0.00016438,2]
[354181665,1740333037993,-500.0,0.00016438,2]
[354181666,1740333038002,-500.0,0.00016438,2]
[354181667,1740333038012,-500.0,0.00016438,2]
[354181668,1740333038022,-500.0,0.00016438,2]
[354181669,1740333038032,-500.0,0.00016438,2]
[354181670,1740333038042,-500.0,0.00016438,2]
[354181671,1740333038051,-500.0,0.00016438,2]
[354181672,1740333038061,-500.0,0.00016438,2]
[354181673,1740333038070,-500.0,0.00016438,2]
[354181674,1740333038079,-500.0,0.00016438,2]
[354181675,1740333038089,-500.0,0.00016438,2]
[354181676,1740333038099,-331.17065663,0.00016438,2]
[354181677,1740333038143,-168.82934337,0.00016438,2]
[354181678,1740333038153,-500.0,0.00016438,2]
[354181679,1740333038162,-500.0,0.00016438,2]
[354181680,1740333038171,-500.0,0.00016438,2]
[354181681,1740333038180,-500.0,0.00016438,2]
[354181682,1740333038189,-500.0,0.00016438,2]
[354181683,1740333038199,-500.0,0.00016438,2]
[354181684,1740333038208,-500.0,0.00016438,2]
[354181685,1740333038219,-500.0,0.00016438,2]
[354181686,1740333038229,-500.0,0.00016438,2]
[354181687,1740333038238,-500.0,0.00016438,2]
[354181688,1740333038247,-500.0,0.00016438,2]
[354181689,1740333038256,-500.0,0.00016438,2]
[354181690,1740333038266,-500.0,0.00016438,2]
[354181691,1740333038277,-500.0,0.00016438,2]
[354181692,1740333038286,-500.0,0.00016438,2]
[354181693,1740333038297,-500.0,0.00016438,2]
[354181694,1740333038307,-500.0,0.00016438,2]
[354181695,1740333038317,-500.0,0.00016438,2]
[354181696,1740333038326,-500.0,0.00016438,2]
[354181697,1740333038336,-500.0,0.00016438,2]
[354181698,1740333038346,-500.0,0.00016438,2]
[354181699,1740333038355,-500.0,0.00016438,2]
[354181700,1740333038365,-500.0,0.00016438,2]
[354181701,1740333038374,-500.0,0.00016438,2]
[354181702,1740333038383,-500.0,0.00016438,2]
[354181703,1740333038393,-500.0,0.00016438,2]
[354181704,1740333038402,-500.0,0.00016438,2]
[354181705,1740333038412,-500.0,0.00016438,2]
[354181706,1740333038421,-500.0,0.00016438,2]
[354181707,1740333038431,-500.0,0.00016438,2]
[354181708,1740333038440,-212.51506266,0.00016438,2]
[354181709,1740333038810,-287.48493734,0.00016438,2]
[354181710,1740333038820,-500.0,0.00016438,2]
[354181711,1740333038829,-78.560616,0.00016438,2]
[354181712,1740333038840,-421.439384,0.00016438,2]
[354181713,1740333038849,-14.22360846,0.00016438,2]
[354181714,1740333038860,-485.77639154,0.00016438,2]
[354181715,1740333038870,-500.0,0.00016438,2]
[354181716,1740333038879,-500.0,0.00016438,2]
[354181717,1740333038888,-500.0,0.00016438,2]
[354181718,1740333038897,-500.0,0.00016438,2]
[354181719,1740333038906,-500.0,0.00016438,2]
[354181720,1740333038915,-500.0,0.00016438,2]
[354181721,1740333038925,-500.0,0.00016438,2]
[354181722,1740333038934,-500.0,0.00016438,2]
[354181723,1740333038943,-89.22285768,0.00016438,2]
[354181724,1740333038955,-410.77714232,0.00016438,2]
[354181725,1740333038964,-500.0,0.00016438,2]
[354181726,1740333038977,-500.0,0.00016438,2]
[354181727,1740333038987,-1000.0,0.00016438,2]
[354181728,1740333038996,-500.0,0.00016438,2]
[354181729,1740333039005,-500.0,0.00016438,2]
[354181730,1740333039014,-500.0,0.00016438,2]
[354181731,1740333039023,-500.0,0.00016438,2]
[354181732,1740333039032,-500.0,0.00016438,2]
[354181733,1740333039041,-500.0,0.00016438,2]
[354181734,1740333039050,-500.0,0.00016438,2]
[354181735,1740333039060,-500.0,0.00016438,2]
[354181736,1740333039069,-500.0,0.00016438,2]
[354181737,1740333039078,-500.0,0.00016438,2]
[354181738,1740333039087,-500.0,0.00016438,2]
[354181739,1740333039096,-500.0,0.00016438,2]
[354181740,1740333039105,-500.0,0.00016438,2]
[354181741,1740333039114,-500.0,0.00016438,2]
[354181742,1740333039123,-500.0,0.00016438,2]
[354181743,1740333039132,-500.0,0.00016438,2]
[354181744,1740333039141,-500.0,0.00016438,2]
[354181745,1740333039150,-500.0,0.00016438,2]
[354181746,1740333039159,-500.0,0.00016438,2]
[354181747,1740333039168,-500.0,0.00016438,2]
[354181748,1740333039176,-500.0,0.00016438,2]
[354181749,1740333039185,-500.0,0.00016438,2]
[354181750,1740333039194,-500.0,0.00016438,2]
[354181751,1740333039203,-500.0,0.00016438,2]
[354181752,1740333039212,-500.0,0.00016438,2]
[354181753,1740333039222,-500.0,0.00016438,2]
[354181754,1740333039231,-500.0,0.00016438,2]
[354181755,1740333039240,-500.0,0.00016438,2]
[354181756,1740333039249,-500.0,0.00016438,2]
[354181757,1740333039258,-500.0,0.00016438,2]
[354181758,1740333039267,-500.0,0.00016438,30]
[354181759,1740333039276,-110.07440199,0.00016438,2]
[354181760,1740333039290,-389.92559801,0.00016438,2]
[354181761,1740333039299,-500.0,0.00016438,2]
[354181762,1740333039308,-500.0,0.00016438,2]
[354181763,1740333039318,-500.0,0.00016438,2]
[354181764,1740333039327,-500.0,0.00016438,2]
[354181765,1740333039335,-500.0,0.00016438,2]
[354181766,1740333039344,-500.0,0.00016438,2]
[354181767,1740333039354,-500.0,0.00016438,2]
[354181768,1740333039363,-500.0,0.00016438,2]
[354181769,1740333039372,-500.0,0.00016438,2]
[354181770,1740333039381,-500.0,0.00016438,2]
[354181771,1740333039600,-500.0,0.00016438,2]
[354181772,1740333039610,-500.0,0.00016438,2]
[354181773,1740333039620,-500.0,0.00016438,2]
[354181774,1740333039629,-500.0,0.00016438,2]
[354181775,1740333039639,-500.0,0.00016438,2]
[354181776,1740333039650,-500.0,0.00016438,2]
[354181777,1740333039659,-500.0,0.00016438,2]
[354181778,1740333039667,-500.0,0.00016438,2]
[354181779,1740333039676,-500.0,0.00016438,2]
[354181780,1740333039686,-500.0,0.00016438,2]
[354181781,1740333039695,-500.0,0.00016438,2]
[354181782,1740333039704,-500.0,0.00016438,2]
[354181783,1740333039713,-500.0,0.00016438,2]
[354181784,1740333039722,-500.0,0.00016438,2]
[354181785,1740333039731,-505.05479314,0.00016438,2]
[354181786,1740333039740,-500.0,0.00016438,2]
[354181787,1740333039749,-500.0,0.00016438,2]
[354181788,1740333039758,-65.71492688,0.00016438,2]
[354181789,1740333039842,-434.28507312,0.00016438,2]
[354181790,1740333039851,-500.0,0.00016438,2]
[354181791,1740333039860,-500.0,0.00016438,2]
[354181792,1740333039869,-500.0,0.00016438,2]
[354181794,1740333039878,-500.0,0.00016438,2]
[354181796,1740333039887,-500.0,0.00016438,2]
[354181797,1740333039896,-500.0,0.00016438,2]
[354181798,1740333039905,-500.0,0.00016438,2]
[354181799,1740333039914,-500.0,0.00016438,2]
[354181800,1740333039923,-500.0,0.00016438,2]
[354181801,1740333039932,-500.0,0.00016438,2]
[354181802,1740333039944,-500.0,0.00016438,2]
[354181803,1740333039954,-525.45,0.00016438,2]
[354181804,1740333039963,-500.0,0.00016438,2]
[354181805,1740333039973,-500.0,0.00016438,2]
[354181806,1740333039982,-500.0,0.00016438,2]
[354181807,1740333039991,-500.0,0.00016438,2]
[354181808,1740333040001,-500.0,0.00016438,2]
[354181809,1740333040009,-500.0,0.00016438,2]
[354181810,1740333040018,-501.57995222,0.00016438,2]
[354181811,1740333040027,-500.0,0.00016438,2]
[354181812,1740333040036,-500.0,0.00016438,2]
[354181813,1740333040045,-500.0,0.00016438,2]
[354181814,1740333040054,-500.0,0.00016438,2]
[354181815,1740333040063,-500.0,0.00016438,2]
[354181816,1740333040071,-500.0,0.00016438,2]
[354181817,1740333040080,-500.0,0.00016438,2]
[354181818,1740333040089,-500.0,0.00016438,2]
[354181819,1740333040098,-500.0,0.00016438,2]
[354181820,1740333040107,-500.0,0.00016438,2]
[354181821,1740333040116,-500.0,0.00016438,2]
[354181822,1740333040125,-500.0,0.00016438,2]
[354181823,1740333040135,-500.0,0.00016438,2]
[354181824,1740333040143,-500.0,0.00016438,2]
[354181825,1740333040152,-500.0,0.00016438,2]
[354181826,1740333040161,-512.45257579,0.00016438,2]
[354181827,1740333040170,-500.0,0.00016438,2]
[354181828,1740333040179,-500.0,0.00016438,2]
[354181829,1740333040188,-500.0,0.00016438,2]
[354181830,1740333040197,-500.0,0.00016438,2]
[354181831,1740333040206,-500.0,0.00016438,2]
[354181832,1740333040215,-500.0,0.00016438,2]
[354181833,1740333040224,-500.0,0.00016438,2]
[354181834,1740333040233,-500.0,0.00016438,2]
[354181835,1740333040242,-500.0,0.00016438,2]
[354181836,1740333040251,-500.0,0.00016438,2]
[354181837,1740333040260,-500.0,0.00016438,2]
[354181838,1740333040269,-500.0,0.00016438,2]
[354181839,1740333040278,-500.0,0.00016438,2]
[354181840,1740333040287,-500.0,0.00016438,2]